[Event "Early-Titled-Tuesday-Blitz-October-17-2023"]
[Site "Chess.com"]
[Date "2023.10.17"]
[Round "9"]
[White "Khuslen2008"]
[Black "pineapplepenn"]
[Result "1-0"]
[WhiteElo "2297"]
[BlackElo "2397"]
[TimeControl "180+1"]
[EndTime "9:49:28 PDT"]
[Termination "Khuslen2008 won on time"]

1. d4 {[%clk 0:02:58.5]} 1... d6 {[%clk 0:02:59.7]} 2. c4 {[%clk 0:02:57.4]}
2... Nf6 {[%clk 0:02:58.1]} 3. Nc3 {[%clk 0:02:56.9]} 3... e5 {[%clk 0:02:48.9]}
4. e4 {[%clk 0:02:52.8]} 4... exd4 {[%clk 0:02:44.5]} 5. Qxd4 {[%clk 0:02:52.1]}
5... Nc6 {[%clk 0:02:43.7]} 6. Qd1 {[%clk 0:02:49.8]} 6... g6 {[%clk 0:02:43.5]}
7. Nf3 {[%clk 0:02:49]} 7... Bg7 {[%clk 0:02:44]} 8. Be2 {[%clk 0:02:45]} 8...
O-O {[%clk 0:02:43.4]} 9. O-O {[%clk 0:02:42.5]} 9... h6 {[%clk 0:02:43]} 10.
Be3 {[%clk 0:02:38.6]} 10... Re8 {[%clk 0:02:42.5]} 11. Bd3 {[%clk 0:02:27.3]}
11... Bg4 {[%clk 0:02:40.7]} 12. Nd5 {[%clk 0:01:59.2]} 12... Nxe4 {[%clk
0:02:29.5]} 13. h3 {[%clk 0:01:57.2]} 13... Bxf3 {[%clk 0:02:24.9]} 14. Qxf3
{[%clk 0:01:57.1]} 14... Nc5 {[%clk 0:02:18.5]} 15. Bc2 {[%clk 0:01:43.5]} 15...
Ne5 {[%clk 0:02:16.1]} 16. Qe2 {[%clk 0:01:43.1]} 16... c6 {[%clk 0:02:12.9]}
17. Nc3 {[%clk 0:01:35.6]} 17... Qe7 {[%clk 0:02:04.3]} 18. Rad1 {[%clk
0:01:34.8]} 18... Qe6 {[%clk 0:02:03]} 19. b3 {[%clk 0:01:29.3]} 19... a5 {[%clk
0:01:58]} 20. Qd2 {[%clk 0:01:24.6]} 20... Kh7 {[%clk 0:01:36]} 21. Qxd6 {[%clk
0:01:21.6]} 21... Qxd6 {[%clk 0:01:29]} 22. Rxd6 {[%clk 0:01:21.2]} 22... Ne6
{[%clk 0:01:27.9]} 23. Na4 {[%clk 0:01:11.9]} 23... b5 {[%clk 0:01:22.4]} 24.
cxb5 {[%clk 0:01:02]} 24... cxb5 {[%clk 0:01:22.7]} 25. Nb6 {[%clk 0:01:02]}
25... Rad8 {[%clk 0:01:21.7]} 26. Rfd1 {[%clk 0:01:01.1]} 26... Rxd6 {[%clk
0:01:18.4]} 27. Rxd6 {[%clk 0:01:00.8]} 27... f5 {[%clk 0:00:42.8]} 28. f4
{[%clk 0:00:47.4]} 28... Nf7 {[%clk 0:00:41.9]} 29. Rd7 {[%clk 0:00:47]} 29...
Kg8 {[%clk 0:00:40.1]} 30. Kf2 {[%clk 0:00:38.4]} 30... b4 {[%clk 0:00:38.6]}
31. Ra7 {[%clk 0:00:37.1]} 31... Nd4 {[%clk 0:00:36.5]} 32. Bd3 {[%clk
0:00:33.8]} 32... Nc6 {[%clk 0:00:27.4]} 33. Rc7 {[%clk 0:00:32.5]} 33... Nfd8
{[%clk 0:00:19.8]} 34. Bb5 {[%clk 0:00:31.1]} 34... Re7 {[%clk 0:00:14.9]} 35.
Rc8 {[%clk 0:00:28.8]} 35... Kh7 {[%clk 0:00:04.8]} 36. Bxc6 {[%clk 0:00:28.3]}
36... Nxc6 {[%clk 0:00:04.2]} 37. Rxc6 {[%clk 0:00:28.2]} 37... g5 {[%clk
0:00:04.2]} 38. g3 {[%clk 0:00:27.7]} 38... g4 {[%clk 0:00:03.7]} 39. hxg4
{[%clk 0:00:27.3]} 39... fxg4 {[%clk 0:00:04.4]} 40. Rc8 {[%clk 0:00:21.9]}
40... Re6 {[%clk 0:00:04.5]} 41. Ra8 {[%clk 0:00:21.4]} 41... Rc6 {[%clk
0:00:04.4]} 42. Rxa5 {[%clk 0:00:20.6]} 42... Rc2+ {[%clk 0:00:05]} 43. Ke1
{[%clk 0:00:20.6]} 43... Bc3+ {[%clk 0:00:04.6]} 44. Kf1 {[%clk 0:00:19.4]}
44... Kg6 {[%clk 0:00:02.3]} 45. Nd5 {[%clk 0:00:18.8]} 45... h5 {[%clk
0:00:01.2]} 46. Nxc3 {[%clk 0:00:18.5]} 46... bxc3 {[%clk 0:00:01.8]} 47. Rc5
{[%clk 0:00:18.2]} 47... h4 {[%clk 0:00:01.7]} 48. gxh4 {[%clk 0:00:18]} 48...
Kf6 {[%clk 0:00:02.1]} 49. h5 {[%clk 0:00:17.5]} 49... g3 {[%clk 0:00:02.6]} 50.
a4 {[%clk 0:00:17.1]} 50... Ke6 {[%clk 0:00:02.5]} 51. h6 {[%clk 0:00:17.2]}
51... Rh2 {[%clk 0:00:01]} 52. Rxc3 {[%clk 0:00:15.4]} 52... Kf5 {[%clk
0:00:01.5]} 53. Kg1 {[%clk 0:00:14.1]} 53... Ke4 {[%clk 0:00:01.8]} 54. Bb6
{[%clk 0:00:12.6]} 1-0

[Event "Early-Titled-Tuesday-Blitz-October-17-2023"]
[Site "Chess.com"]
[Date "2023.10.17"]
[Round "9"]
[White "whitemirrorninja"]
[Black "carokannlover213"]
[Result "1/2-1/2"]
[WhiteElo "2549"]
[BlackElo "2725"]
[TimeControl "180+1"]
[EndTime "9:49:31 PDT"]
[Termination "Game drawn by repetition"]

1. e4 {[%clk 0:03:00.9]} 1... c5 {[%clk 0:02:59.9]} 2. Nf3 {[%clk 0:03:00.7]}
2... d6 {[%clk 0:03:00.6]} 3. d4 {[%clk 0:03:00.5]} 3... cxd4 {[%clk 0:03:01.5]}
4. Nxd4 {[%clk 0:03:01.1]} 4... Nf6 {[%clk 0:03:02.2]} 5. Nc3 {[%clk 0:03:01.3]}
5... Nc6 {[%clk 0:03:02.8]} 6. Nde2 {[%clk 0:02:58.1]} 6... Bg4 {[%clk
0:02:58.6]} 7. f3 {[%clk 0:02:57.4]} 7... Bd7 {[%clk 0:02:56.6]} 8. Be3 {[%clk
0:02:56.9]} 8... e5 {[%clk 0:02:53.6]} 9. Ng3 {[%clk 0:02:51.6]} 9... a6 {[%clk
0:02:39.1]} 10. Bc4 {[%clk 0:02:49.6]} 10... Be6 {[%clk 0:02:39]} 11. Bb3 {[%clk
0:02:37.2]} 11... Na5 {[%clk 0:02:30.5]} 12. Qd3 {[%clk 0:02:25.1]} 12... Nxb3
{[%clk 0:02:28.9]} 13. axb3 {[%clk 0:02:24.2]} 13... Be7 {[%clk 0:02:27.3]} 14.
O-O {[%clk 0:02:14.7]} 14... d5 {[%clk 0:02:05.7]} 15. exd5 {[%clk 0:02:11.2]}
15... Nxd5 {[%clk 0:02:06.6]} 16. Nxd5 {[%clk 0:02:09.6]} 16... Qxd5 {[%clk
0:02:06.5]} 17. Qxd5 {[%clk 0:02:07]} 17... Bxd5 {[%clk 0:02:07.4]} 18. Nf5
{[%clk 0:02:07.1]} 18... Bf8 {[%clk 0:02:08.1]} 19. Rfd1 {[%clk 0:02:02.7]}
19... Be6 {[%clk 0:01:53.8]} 20. Nd6+ {[%clk 0:01:59.2]} 20... Bxd6 {[%clk
0:01:53.8]} 21. Rxd6 {[%clk 0:02:00.1]} 21... Rd8 {[%clk 0:01:54.2]} 22. Bc5
{[%clk 0:01:47.2]} 22... Rxd6 {[%clk 0:01:51.7]} 23. Bxd6 {[%clk 0:01:47.2]}
23... f6 {[%clk 0:01:52.6]} 24. Kf2 {[%clk 0:01:30.8]} 24... Kf7 {[%clk
0:01:47.2]} 25. Bb4 {[%clk 0:01:29.4]} 25... Rd8 {[%clk 0:01:41.9]} 26. Ke2
{[%clk 0:01:25.5]} 26... Bf5 {[%clk 0:01:41.8]} 27. Rd1 {[%clk 0:01:08.9]} 27...
Rc8 {[%clk 0:01:40.5]} 28. c3 {[%clk 0:01:06.6]} 28... Rc7 {[%clk 0:01:40.1]}
29. Ba5 {[%clk 0:00:59.1]} 29... Rc5 {[%clk 0:01:38.2]} 30. b4 {[%clk
0:00:56.5]} 30... Rc8 {[%clk 0:01:35.1]} 31. Rd8 {[%clk 0:00:55.1]} 31... Rxd8
{[%clk 0:00:53.8]} 32. Bxd8 {[%clk 0:00:56]} 32... Ke6 {[%clk 0:00:54.3]} 33. g4
{[%clk 0:00:53.5]} 33... Bc2 {[%clk 0:00:53.7]} 34. h4 {[%clk 0:00:52]} 34...
Kd5 {[%clk 0:00:53.6]} 35. h5 {[%clk 0:00:49.3]} 35... Ke6 {[%clk 0:00:44.1]}
36. Bb6 {[%clk 0:00:46.3]} 36... g6 {[%clk 0:00:43.1]} 37. hxg6 {[%clk
0:00:44.1]} 37... hxg6 {[%clk 0:00:44]} 38. Bc5 {[%clk 0:00:43.1]} 38... Bb3
{[%clk 0:00:43.3]} 39. Ke3 {[%clk 0:00:41.5]} 39... Kd5 {[%clk 0:00:43.5]} 40.
Be7 {[%clk 0:00:37.7]} 40... Ke6 {[%clk 0:00:40.9]} 41. Bd8 {[%clk 0:00:36.6]}
41... Bc4 {[%clk 0:00:41.2]} 42. f4 {[%clk 0:00:33.2]} 42... exf4+ {[%clk
0:00:32.4]} 43. Kxf4 {[%clk 0:00:34.1]} 43... g5+ {[%clk 0:00:32.1]} 44. Kf3
{[%clk 0:00:32]} 44... Bb3 {[%clk 0:00:31.8]} 45. Kg3 {[%clk 0:00:22.7]} 45...
b5 {[%clk 0:00:25.5]} 46. Bb6 {[%clk 0:00:20.6]} 46... Bd1 {[%clk 0:00:21.1]}
47. Bd8 {[%clk 0:00:20.2]} 47... Ke5 {[%clk 0:00:20.7]} 48. Bc7+ {[%clk
0:00:18.3]} 48... Ke4 {[%clk 0:00:20.8]} 49. Bd8 {[%clk 0:00:19]} 49... f5
{[%clk 0:00:16.5]} 50. gxf5 {[%clk 0:00:18.7]} 50... Kxf5 {[%clk 0:00:16.5]} 51.
Be7 {[%clk 0:00:17.9]} 51... g4 {[%clk 0:00:14.8]} 52. Bd8 {[%clk 0:00:13.1]}
52... Ke6 {[%clk 0:00:10.2]} 53. Bc7 {[%clk 0:00:13.1]} 53... Kd5 {[%clk
0:00:08]} 54. Bd8 {[%clk 0:00:12.9]} 54... Kc4 {[%clk 0:00:07.5]} 55. Ba5 {[%clk
0:00:12.2]} 55... Kb3 {[%clk 0:00:07.5]} 56. Kf4 {[%clk 0:00:12.2]} 56... Kxb2
{[%clk 0:00:07.2]} 57. Kg3 {[%clk 0:00:12.3]} 57... Kxc3 {[%clk 0:00:07.6]} 58.
Kf4 {[%clk 0:00:12.6]} 58... Kc4 {[%clk 0:00:07.4]} 59. Kg3 {[%clk 0:00:13.2]}
59... Bf3 {[%clk 0:00:07.7]} 60. Kf4 {[%clk 0:00:13.4]} 60... Kd3 {[%clk
0:00:08.4]} 61. Kg3 {[%clk 0:00:14]} 61... Kd4 {[%clk 0:00:09.1]} 62. Kf4 {[%clk
0:00:14]} 62... Kc3 {[%clk 0:00:09.5]} 63. Kg3 {[%clk 0:00:14.6]} 63... Kd2
{[%clk 0:00:10.4]} 64. Kf4 {[%clk 0:00:15]} 64... Ke1 {[%clk 0:00:11.3]} 65. Kg3
{[%clk 0:00:15.3]} 65... Kf1 {[%clk 0:00:12.2]} 66. Bb6 {[%clk 0:00:15.6]} 66...
Ke2 {[%clk 0:00:13.1]} 67. Ba5 {[%clk 0:00:16.4]} 67... Kd3 {[%clk 0:00:13.5]}
68. Bb6 {[%clk 0:00:16.8]} 68... Kc4 {[%clk 0:00:14.4]} 69. Ba5 {[%clk
0:00:17.4]} 69... Kc3 {[%clk 0:00:14.9]} 70. Kf4 {[%clk 0:00:17.8]} 70... Kd4
{[%clk 0:00:15.8]} 71. Kg3 {[%clk 0:00:18.2]} 71... Kd5 {[%clk 0:00:16.7]} 72.
Bb6 {[%clk 0:00:18.4]} 72... a5 {[%clk 0:00:14.5]} 73. Bxa5 {[%clk 0:00:17.6]}
73... Kc6 {[%clk 0:00:15]} 74. Kf4 {[%clk 0:00:17.7]} 74... Kd5 {[%clk
0:00:15.9]} 75. Kg3 {[%clk 0:00:18.2]} 75... Kc4 {[%clk 0:00:16.8]} 76. Kf2
{[%clk 0:00:18.5]} 76... Kb3 {[%clk 0:00:17.7]} 77. Kg3 {[%clk 0:00:19.3]} 77...
Kc4 {[%clk 0:00:18.3]} 78. Kf2 {[%clk 0:00:20]} 78... Kd3 {[%clk 0:00:19.2]} 79.
Kg3 {[%clk 0:00:20.9]} 79... Ke3 {[%clk 0:00:20.1]} 80. Bb6+ {[%clk 0:00:20.7]}
80... Kd3 {[%clk 0:00:20.1]} 81. Ba5 {[%clk 0:00:21.6]} 81... Kc4 {[%clk
0:00:21]} 1/2-1/2

[Event "Early-Titled-Tuesday-Blitz-October-17-2023"]
[Site "Chess.com"]
[Date "2023.10.17"]
[Round "9"]
[White "Hambardzumyan_Yuri"]
[Black "Maect19"]
[Result "1-0"]
[WhiteElo "2451"]
[BlackElo "2231"]
[TimeControl "180+1"]
[EndTime "9:49:32 PDT"]
[Termination "Hambardzumyan_Yuri won by resignation"]

1. e4 {[%clk 0:03:00.9]} 1... e5 {[%clk 0:02:55.5]} 2. Nf3 {[%clk 0:03:00.7]}
2... Nc6 {[%clk 0:02:55.4]} 3. Nc3 {[%clk 0:03:01.5]} 3... Nf6 {[%clk
0:02:54.8]} 4. d4 {[%clk 0:03:01.8]} 4... exd4 {[%clk 0:02:54.5]} 5. Nxd4 {[%clk
0:03:02.7]} 5... Bb4 {[%clk 0:02:54.2]} 6. Nxc6 {[%clk 0:03:03.1]} 6... bxc6
{[%clk 0:02:52.6]} 7. Bd3 {[%clk 0:03:03.7]} 7... d5 {[%clk 0:02:52.2]} 8. exd5
{[%clk 0:03:04.6]} 8... cxd5 {[%clk 0:02:52.1]} 9. O-O {[%clk 0:03:05.2]} 9...
O-O {[%clk 0:02:50.2]} 10. Bg5 {[%clk 0:03:05.8]} 10... c6 {[%clk 0:02:46]} 11.
Qf3 {[%clk 0:03:06.4]} 11... Be7 {[%clk 0:02:45]} 12. Rae1 {[%clk 0:03:06.6]}
12... Be6 {[%clk 0:02:44.8]} 13. h3 {[%clk 0:03:06]} 13... h6 {[%clk 0:02:44.3]}
14. Bd2 {[%clk 0:03:04.1]} 14... Nd7 {[%clk 0:02:43.4]} 15. Qg3 {[%clk
0:02:57.5]} 15... Bg5 {[%clk 0:02:21.7]} 16. Bxg5 {[%clk 0:02:54.6]} 16... Qxg5
{[%clk 0:02:22.6]} 17. Ne2 {[%clk 0:02:52.8]} 17... Qxg3 {[%clk 0:02:13.1]} 18.
fxg3 {[%clk 0:02:48.5]} 18... Rfe8 {[%clk 0:02:08.8]} 19. b3 {[%clk 0:02:43.6]}
19... a5 {[%clk 0:02:02.4]} 20. Bf5 {[%clk 0:02:33.2]} 20... Bxf5 {[%clk
0:01:52.8]} 21. Rxf5 {[%clk 0:02:34.1]} 21... Re3 {[%clk 0:01:41.5]} 22. Rff1
{[%clk 0:02:29.2]} 22... Rae8 {[%clk 0:01:38.9]} 23. Kf2 {[%clk 0:02:28.4]}
23... c5 {[%clk 0:01:25.2]} 24. Nf4 {[%clk 0:02:26]} 24... d4 {[%clk 0:01:21.8]}
25. Nd5 {[%clk 0:02:18.8]} 25... R3e5 {[%clk 0:01:14.4]} 26. Nf4 {[%clk
0:02:03.1]} 26... f6 {[%clk 0:01:09.2]} 27. Nd3 {[%clk 0:01:48.1]} 27... Re3
{[%clk 0:01:03.9]} 28. Rxe3 {[%clk 0:01:48.1]} 28... Rxe3 {[%clk 0:01:03.8]} 29.
Re1 {[%clk 0:01:46.8]} 29... Rxe1 {[%clk 0:01:03.7]} 30. Kxe1 {[%clk 0:01:47.7]}
30... Kf7 {[%clk 0:01:03.6]} 31. Nb2 {[%clk 0:01:46.1]} 31... Nb6 {[%clk
0:01:01.1]} 32. Ke2 {[%clk 0:01:46.3]} 32... Ke6 {[%clk 0:01:00.3]} 33. Kd3
{[%clk 0:01:46.5]} 33... Kd5 {[%clk 0:00:59.8]} 34. a4 {[%clk 0:01:42.3]} 34...
f5 {[%clk 0:00:55.1]} 35. h4 {[%clk 0:01:37.6]} 35... g6 {[%clk 0:00:48.4]} 36.
c3 {[%clk 0:01:29.5]} 36... dxc3 {[%clk 0:00:46.1]} 37. Kxc3 {[%clk 0:01:30.4]}
37... g5 {[%clk 0:00:40.7]} 38. Kd3 {[%clk 0:01:19.2]} 38... Kd6 {[%clk
0:00:25.9]} 39. Nd1 {[%clk 0:01:12.2]} 39... Nd5 {[%clk 0:00:25.1]} 40. Nb2
{[%clk 0:01:07]} 40... Nb6 {[%clk 0:00:24.1]} 41. h5 {[%clk 0:00:58.4]} 41...
Kd5 {[%clk 0:00:22.4]} 42. Nd1 {[%clk 0:00:56.4]} 42... c4+ {[%clk 0:00:20.8]}
43. bxc4+ {[%clk 0:00:53.4]} 43... Nxc4 {[%clk 0:00:21.4]} 44. Nc3+ {[%clk
0:00:53.6]} 44... Kc5 {[%clk 0:00:21]} 45. Ke2 {[%clk 0:00:47]} 45... Kb4 {[%clk
0:00:20.2]} 46. Nd5+ {[%clk 0:00:44.9]} 46... Kxa4 {[%clk 0:00:20.4]} 47. Ne7
{[%clk 0:00:45.6]} 47... Kb3 {[%clk 0:00:20.6]} 48. Nc6 {[%clk 0:00:41.5]} 48...
a4 {[%clk 0:00:20.4]} 49. Nd4+ {[%clk 0:00:42.2]} 49... Kb2 {[%clk 0:00:20.5]}
50. Nb5 {[%clk 0:00:29.3]} 50... a3 {[%clk 0:00:18]} 51. Nxa3 {[%clk 0:00:29.6]}
51... Kxa3 {[%clk 0:00:18.6]} 52. Kd3 {[%clk 0:00:29]} 52... Kb4 {[%clk
0:00:18.1]} 53. Kd4 {[%clk 0:00:29.2]} 53... Nd2 {[%clk 0:00:16.2]} 54. Ke5
{[%clk 0:00:28.4]} 54... Nf1 {[%clk 0:00:16.6]} 55. Kxf5 {[%clk 0:00:26.7]}
55... Nxg3+ {[%clk 0:00:17.1]} 56. Kg6 {[%clk 0:00:27.5]} 56... g4 {[%clk
0:00:14.2]} 57. Kxh6 {[%clk 0:00:26.5]} 57... Ne4 {[%clk 0:00:14.8]} 58. Kg6
{[%clk 0:00:24.1]} 58... Nc5 {[%clk 0:00:11.9]} 59. Kf5 {[%clk 0:00:17.6]} 59...
Nb7 {[%clk 0:00:10]} 60. h6 {[%clk 0:00:17.2]} 60... Nd6+ {[%clk 0:00:10.5]} 61.
Ke6 {[%clk 0:00:15.1]} 61... Ne4 {[%clk 0:00:09.8]} 62. Kf5 {[%clk 0:00:12.8]}
62... Nd6+ {[%clk 0:00:09.9]} 63. Kxg4 {[%clk 0:00:09.9]} 63... Kc5 {[%clk
0:00:09.9]} 64. h7 {[%clk 0:00:08]} 64... Nf7 {[%clk 0:00:09.9]} 65. Kf5 {[%clk
0:00:07.8]} 65... Kd6 {[%clk 0:00:10.5]} 66. Kf6 {[%clk 0:00:07.9]} 66... Nh8
{[%clk 0:00:09.4]} 67. g4 {[%clk 0:00:08.1]} 67... Kd7 {[%clk 0:00:08.6]} 68. g5
{[%clk 0:00:07.9]} 68... Ke8 {[%clk 0:00:08.8]} 69. g6 {[%clk 0:00:08.1]} 1-0

[Event "Early-Titled-Tuesday-Blitz-October-17-2023"]
[Site "Chess.com"]
[Date "2023.10.17"]
[Round "9"]
[White "HouseOfDurin"]
[Black "JiiHart"]
[Result "1/2-1/2"]
[WhiteElo "2274"]
[BlackElo "2204"]
[TimeControl "180+1"]
[EndTime "9:49:32 PDT"]
[Termination "Game drawn by repetition"]

1. d4 {[%clk 0:03:00.9]} 1... d5 {[%clk 0:02:59.4]} 2. Bg5 {[%clk 0:03:01.5]}
2... c5 {[%clk 0:02:58.8]} 3. c3 {[%clk 0:03:01.3]} 3... Nc6 {[%clk 0:02:57.2]}
4. e3 {[%clk 0:03:00.8]} 4... f6 {[%clk 0:02:55.5]} 5. Bh4 {[%clk 0:03:00.4]}
5... Qb6 {[%clk 0:02:50.7]} 6. Qb3 {[%clk 0:02:38.1]} 6... e6 {[%clk 0:02:43.6]}
7. Nd2 {[%clk 0:02:34]} 7... cxd4 {[%clk 0:02:31.3]} 8. exd4 {[%clk 0:02:33.3]}
8... Qxb3 {[%clk 0:02:23.9]} 9. axb3 {[%clk 0:02:31.4]} 9... Bd6 {[%clk
0:02:19.4]} 10. Bg3 {[%clk 0:02:30.1]} 10... Bxg3 {[%clk 0:02:16.9]} 11. hxg3
{[%clk 0:02:31]} 11... Nge7 {[%clk 0:02:15.3]} 12. Bd3 {[%clk 0:02:30.4]} 12...
f5 {[%clk 0:01:56.6]} 13. b4 {[%clk 0:02:17.5]} 13... Bd7 {[%clk 0:01:45.7]} 14.
Ngf3 {[%clk 0:02:02.4]} 14... O-O {[%clk 0:01:29]} 15. b5 {[%clk 0:02:01.3]}
15... Nd8 {[%clk 0:01:25.6]} 16. Ne5 {[%clk 0:02:01.5]} 16... Be8 {[%clk
0:01:17]} 17. Nb3 {[%clk 0:01:41.8]} 17... b6 {[%clk 0:01:06.2]} 18. Ke2 {[%clk
0:01:19.3]} 18... Nf7 {[%clk 0:01:05.1]} 19. Nxf7 {[%clk 0:01:12.5]} 19... Rxf7
{[%clk 0:01:04.2]} 20. g4 {[%clk 0:00:57.7]} 20... g6 {[%clk 0:01:02.3]} 21. g5
{[%clk 0:00:44.3]} 21... Nc8 {[%clk 0:01:01.6]} 22. Ra6 {[%clk 0:00:33.3]} 22...
Nd6 {[%clk 0:01:00.1]} 23. Rha1 {[%clk 0:00:33.9]} 23... Rb7 {[%clk 0:00:40.1]}
24. Na5 {[%clk 0:00:30.3]} 24... Rbb8 {[%clk 0:00:23.3]} 25. Nc6 {[%clk
0:00:23.9]} 25... Bxc6 {[%clk 0:00:17.8]} 26. bxc6 {[%clk 0:00:24.8]} 26... Rc8
{[%clk 0:00:18.3]} 27. Rxa7 {[%clk 0:00:24.6]} 27... Rxa7 {[%clk 0:00:18.8]} 28.
Rxa7 {[%clk 0:00:24.9]} 28... Rxc6 {[%clk 0:00:19.2]} 29. f3 {[%clk 0:00:19.7]}
29... Nc8 {[%clk 0:00:18.5]} 30. Rb7 {[%clk 0:00:18.3]} 30... Nd6 {[%clk
0:00:18.2]} 31. Rb8+ {[%clk 0:00:17.6]} 31... Kg7 {[%clk 0:00:17.8]} 32. g3
{[%clk 0:00:14.6]} 32... h6 {[%clk 0:00:18.2]} 33. gxh6+ {[%clk 0:00:12.8]}
33... Kxh6 {[%clk 0:00:18.3]} 34. Rd8 {[%clk 0:00:13.3]} 34... Nf7 {[%clk
0:00:15.6]} 35. Rd7 {[%clk 0:00:12.7]} 35... Kg7 {[%clk 0:00:14.5]} 36. Re7
{[%clk 0:00:11.7]} 36... Kf6 {[%clk 0:00:13.8]} 37. Rb7 {[%clk 0:00:11.9]} 37...
Nd6 {[%clk 0:00:12.8]} 38. Rb8 {[%clk 0:00:11.2]} 38... Kf7 {[%clk 0:00:11.1]}
39. Ke3 {[%clk 0:00:11.1]} 39... g5 {[%clk 0:00:10.8]} 40. Ba6 {[%clk
0:00:10.4]} 40... Rc7 {[%clk 0:00:07.5]} 41. Rxb6 {[%clk 0:00:08.9]} 41... Ra7
{[%clk 0:00:05.5]} 42. Bd3 {[%clk 0:00:08.4]} 42... Nc4+ {[%clk 0:00:04.4]} 43.
Bxc4 {[%clk 0:00:08.2]} 43... dxc4 {[%clk 0:00:05.3]} 44. Rc6 {[%clk 0:00:08.5]}
44... Ra2 {[%clk 0:00:05.5]} 45. Rxc4 {[%clk 0:00:08.5]} 45... Rxb2 {[%clk
0:00:06]} 46. Rc7+ {[%clk 0:00:09.1]} 46... Kf6 {[%clk 0:00:05.7]} 47. f4 {[%clk
0:00:09.2]} 47... g4 {[%clk 0:00:04.9]} 48. Rc6 {[%clk 0:00:08.9]} 48... Rg2
{[%clk 0:00:04.2]} 49. d5 {[%clk 0:00:09.1]} 49... Rxg3+ {[%clk 0:00:04.6]} 50.
Kd4 {[%clk 0:00:09.6]} 50... Rf3 {[%clk 0:00:04.1]} 51. Rxe6+ {[%clk 0:00:10.2]}
51... Kf7 {[%clk 0:00:04.6]} 52. Ke5 {[%clk 0:00:10.4]} 52... Rxc3 {[%clk
0:00:04.4]} 53. Kxf5 {[%clk 0:00:10.7]} 53... g3 {[%clk 0:00:03]} 54. Rg6 {[%clk
0:00:10.8]} 54... Rd3 {[%clk 0:00:02.2]} 55. Rg4 {[%clk 0:00:07.9]} 55... Rxd5+
{[%clk 0:00:02.2]} 56. Ke4 {[%clk 0:00:08.5]} 56... Ra5 {[%clk 0:00:01.8]} 57.
Rxg3 {[%clk 0:00:09]} 57... Kf6 {[%clk 0:00:02.4]} 58. Rh3 {[%clk 0:00:07.4]}
58... Ra4+ {[%clk 0:00:02.8]} 59. Kf3 {[%clk 0:00:07.7]} 59... Kf5 {[%clk
0:00:03]} 60. Rh5+ {[%clk 0:00:07.7]} 60... Kg6 {[%clk 0:00:03.5]} 61. Rg5+
{[%clk 0:00:07.6]} 61... Kf6 {[%clk 0:00:04.1]} 62. Kg4 {[%clk 0:00:08.3]} 62...
Ra1 {[%clk 0:00:04.3]} 63. Rb5 {[%clk 0:00:08.5]} 63... Rg1+ {[%clk 0:00:04.3]}
64. Kf3 {[%clk 0:00:08.9]} 64... Rf1+ {[%clk 0:00:04.5]} 65. Kg3 {[%clk
0:00:09.4]} 65... Rg1+ {[%clk 0:00:04.6]} 66. Kf2 {[%clk 0:00:09.8]} 66... Ra1
{[%clk 0:00:02.9]} 67. Kf3 {[%clk 0:00:10.7]} 67... Rf1+ {[%clk 0:00:02.6]} 68.
Kg4 {[%clk 0:00:10.6]} 68... Rg1+ {[%clk 0:00:02.7]} 69. Kf3 {[%clk 0:00:11.2]}
69... Rf1+ {[%clk 0:00:03.2]} 1/2-1/2